[Event "*** Titled Tuesday Blitz"]
[Site "Chess.com"]
[Date "2021.03.16"]
[Round "4"]
[White "Natalya_Buksa"]
[Black "Playgood28"]
[Result "1-0"]
[WhiteElo "2491"]
[BlackElo "2294"]
[TimeControl "180+1"]
[EndTime "10:37:27 PDT"]
[Termination "Natalya_Buksa won by resignation"]

1. d4 {[%clk 0:03:00.9]} 1... f5 {[%clk 0:02:59.1]} 2. Nc3 {[%clk 0:02:49.9]}
2... Nf6 {[%clk 0:02:55.4]} 3. Bg5 {[%clk 0:02:47.9]} 3... d5 {[%clk 0:02:54.9]}
4. Bxf6 {[%clk 0:02:47.9]} 4... exf6 {[%clk 0:02:54.1]} 5. e3 {[%clk 0:02:46.8]}
5... Be6 {[%clk 0:02:53.3]} 6. Bd3 {[%clk 0:02:46.5]} 6... Nc6 {[%clk
0:02:52.3]} 7. Nge2 {[%clk 0:02:46.7]} 7... Nb4 {[%clk 0:02:41.5]} 8. Nf4 {[%clk
0:02:45.9]} 8... Nxd3+ {[%clk 0:02:40.5]} 9. Qxd3 {[%clk 0:02:45.8]} 9... Qd7
{[%clk 0:02:39.2]} 10. Nxe6 {[%clk 0:02:27]} 10... Qxe6 {[%clk 0:02:38.5]} 11.
Qb5+ {[%clk 0:02:27.5]} 11... c6 {[%clk 0:02:23.8]} 12. Qxb7 {[%clk 0:02:26.8]}
12... Qc8 {[%clk 0:02:23.8]} 13. Qxc8+ {[%clk 0:02:20.7]} 13... Rxc8 {[%clk
0:02:22.3]} 14. a3 {[%clk 0:02:16.7]} 14... a5 {[%clk 0:02:18.3]} 15. Kd2 {[%clk
0:02:15]} 15... Bd6 {[%clk 0:02:16.5]} 16. g3 {[%clk 0:02:11.4]} 16... Rb8
{[%clk 0:02:15.8]} 17. Na4 {[%clk 0:02:11.5]} 17... Kd7 {[%clk 0:02:14.5]} 18.
Rhb1 {[%clk 0:02:02]} 18... g5 {[%clk 0:02:09.5]} 19. b3 {[%clk 0:02:01]} 19...
h5 {[%clk 0:02:03.2]} 20. c4 {[%clk 0:01:59.3]} 20... f4 {[%clk 0:02:01.4]} 21.
c5 {[%clk 0:01:58]} 21... Bc7 {[%clk 0:01:58.8]} 22. b4 {[%clk 0:01:57.3]} 22...
axb4 {[%clk 0:01:58.2]} 23. axb4 {[%clk 0:01:54.9]} 23... fxe3+ {[%clk
0:01:50.6]} 24. Kxe3 {[%clk 0:01:52.5]} 24... f5 {[%clk 0:01:46.2]} 25. Nc3
{[%clk 0:01:49.9]} 25... f4+ {[%clk 0:01:35.7]} 26. Kd3 {[%clk 0:01:42.3]} 26...
fxg3 {[%clk 0:01:30.3]} 27. fxg3 {[%clk 0:01:42.5]} 27... Rhf8 {[%clk
0:01:26.3]} 28. Ra7 {[%clk 0:01:23.1]} 28... Rf3+ {[%clk 0:01:09.5]} 29. Kc2
{[%clk 0:01:20.3]} 29... Rf2+ {[%clk 0:00:54.5]} 30. Kb3 {[%clk 0:01:20.1]}
30... Rxh2 {[%clk 0:00:35.9]} 31. b5 {[%clk 0:01:20.4]} 31... cxb5 {[%clk
0:00:31.2]} 32. Nxd5 {[%clk 0:01:16.5]} 32... Rh3 {[%clk 0:00:20.7]} 33. Rxc7+
{[%clk 0:01:07]} 33... Kd8 {[%clk 0:00:19.2]} 34. Rf1 {[%clk 0:01:04.6]} 34...
Rxg3+ {[%clk 0:00:18.5]} 35. Kb4 {[%clk 0:01:05.1]} 35... Ke8 {[%clk 0:00:15.2]}
36. Re7+ {[%clk 0:01:05.5]} 1-0

[Event "*** Titled Tuesday Blitz"]
[Site "Chess.com"]
[Date "2021.03.16"]
[Round "4"]
[White "vladgoncharov"]
[Black "DonBroca"]
[Result "1-0"]
[WhiteElo "2443"]
[BlackElo "2209"]
[TimeControl "180+1"]
[EndTime "10:37:28 PDT"]
[Termination "vladgoncharov won by checkmate"]

1. Nf3 {[%clk 0:03:00.9]} 1... Nf6 {[%clk 0:02:43.4]} 2. c4 {[%clk 0:02:59.3]}
2... e6 {[%clk 0:02:44.3]} 3. g3 {[%clk 0:02:57.8]} 3... d5 {[%clk 0:02:44.5]}
4. Bg2 {[%clk 0:02:57.6]} 4... Be7 {[%clk 0:02:43.7]} 5. O-O {[%clk 0:02:57.3]}
5... b6 {[%clk 0:02:44.1]} 6. cxd5 {[%clk 0:02:52.8]} 6... exd5 {[%clk
0:02:43.5]} 7. d4 {[%clk 0:02:52.2]} 7... O-O {[%clk 0:02:43.5]} 8. Nc3 {[%clk
0:02:52.8]} 8... Bb7 {[%clk 0:02:40.3]} 9. Bg5 {[%clk 0:02:52.4]} 9... Nbd7
{[%clk 0:02:40.4]} 10. Rc1 {[%clk 0:02:50.5]} 10... h6 {[%clk 0:02:40.7]} 11.
Bxf6 {[%clk 0:02:49.5]} 11... Bxf6 {[%clk 0:02:38.4]} 12. e3 {[%clk 0:02:45.8]}
12... c5 {[%clk 0:02:38.5]} 13. dxc5 {[%clk 0:02:45]} 13... Nxc5 {[%clk
0:02:39.4]} 14. Nd4 {[%clk 0:02:44.7]} 14... Re8 {[%clk 0:02:36.5]} 15. b4
{[%clk 0:02:32.7]} 15... Ne4 {[%clk 0:02:33.9]} 16. b5 {[%clk 0:02:31.8]} 16...
Rc8 {[%clk 0:02:11.7]} 17. Nce2 {[%clk 0:02:31.6]} 17... Qd7 {[%clk 0:02:07.7]}
18. h4 {[%clk 0:02:03.6]} 18... a6 {[%clk 0:01:45.5]} 19. a4 {[%clk 0:02:02.4]}
19... Nc5 {[%clk 0:01:41.2]} 20. Kh2 {[%clk 0:02:00.2]} 20... Qg4 {[%clk
0:00:51.5]} 21. Bh3 {[%clk 0:01:50.3]} 21... Qh5 {[%clk 0:00:51.5]} 22. Bxc8
{[%clk 0:01:47.4]} 22... Bxc8 {[%clk 0:00:52]} 23. Nf4 {[%clk 0:01:47.1]} 23...
Qe5 {[%clk 0:00:49.1]} 24. Nc6 {[%clk 0:01:43.9]} 24... Qf5 {[%clk 0:00:41.4]}
25. Qxd5 {[%clk 0:01:42.6]} 25... Be5 {[%clk 0:00:33.7]} 26. Nxe5 {[%clk
0:00:59.8]} 26... Rxe5 {[%clk 0:00:32.2]} 27. Qd8+ {[%clk 0:00:53.5]} 27... Kh7
{[%clk 0:00:30.9]} 28. h5 {[%clk 0:00:52.3]} 28... Nd3 {[%clk 0:00:18]} 29. Rxc8
{[%clk 0:00:46.9]} 29... Nxf4 {[%clk 0:00:14.3]} 30. Qh8# {[%clk 0:00:45.3]} 1-0

[Event "*** Titled Tuesday Blitz"]
[Site "Chess.com"]
[Date "2021.03.16"]
[Round "4"]
[White "Gahan-MG"]
[Black "kobemagic"]
[Result "1-0"]
[WhiteElo "2666"]
[BlackElo "2399"]
[TimeControl "180+1"]
[EndTime "10:37:33 PDT"]
[Termination "Gahan-MG won on time"]

1. e4 {[%clk 0:03:00.9]} 1... Nf6 {[%clk 0:02:58.9]} 2. e5 {[%clk 0:03:00.9]}
2... Nd5 {[%clk 0:02:58.6]} 3. d4 {[%clk 0:03:00.7]} 3... d6 {[%clk 0:02:59]} 4.
Nf3 {[%clk 0:03:00.8]} 4... dxe5 {[%clk 0:02:57.9]} 5. dxe5 {[%clk 0:03:01.7]}
5... Bg4 {[%clk 0:02:56.7]} 6. Be2 {[%clk 0:03:01.5]} 6... e6 {[%clk 0:02:56.9]}
7. c4 {[%clk 0:03:00.1]} 7... Nb4 {[%clk 0:02:55.6]} 8. Qxd8+ {[%clk 0:02:59.1]}
8... Kxd8 {[%clk 0:02:53.9]} 9. Na3 {[%clk 0:02:57.8]} 9... N8c6 {[%clk
0:02:45.8]} 10. O-O {[%clk 0:02:44.6]} 10... Bc5 {[%clk 0:02:35.7]} 11. Rd1+
{[%clk 0:02:36]} 11... Ke7 {[%clk 0:02:35.1]} 12. Bg5+ {[%clk 0:02:33.2]} 12...
f6 {[%clk 0:02:34.7]} 13. exf6+ {[%clk 0:02:32.7]} 13... gxf6 {[%clk 0:02:35.4]}
14. Bh4 {[%clk 0:02:32.5]} 14... Rad8 {[%clk 0:02:29.2]} 15. h3 {[%clk
0:02:29.5]} 15... Bh5 {[%clk 0:02:17]} 16. Nb5 {[%clk 0:02:28.4]} 16... Rc8
{[%clk 0:01:30.2]} 17. a3 {[%clk 0:02:26.2]} 17... Na6 {[%clk 0:01:16.5]} 18. b4
{[%clk 0:02:25.4]} 18... Ncxb4 {[%clk 0:00:29.5]} 19. axb4 {[%clk 0:02:26.3]}
19... Bxb4 {[%clk 0:00:30.3]} 20. Nxa7 {[%clk 0:02:22.7]} 20... Rcd8 {[%clk
0:00:28.6]} 21. Nb5 {[%clk 0:02:22.5]} 21... c6 {[%clk 0:00:28.2]} 22. Nbd4
{[%clk 0:02:19.8]} 22... Bc3 {[%clk 0:00:20]} 23. Rac1 {[%clk 0:02:18]} 23...
Bxd4 {[%clk 0:00:14.5]} 24. Rxd4 {[%clk 0:02:15.1]} 24... Bxf3 {[%clk 0:00:13]}
25. Rxd8 {[%clk 0:02:15]} 25... Rxd8 {[%clk 0:00:12.2]} 26. Bxf3 {[%clk
0:02:15.4]} 26... Rd4 {[%clk 0:00:11.3]} 27. Bg3 {[%clk 0:02:15.6]} 27... Nb4
{[%clk 0:00:10.5]} 28. c5 {[%clk 0:02:13.8]} 28... Nd3 {[%clk 0:00:08.7]} 29.
Bd6+ {[%clk 0:02:13.1]} 29... Kd7 {[%clk 0:00:07.2]} 30. Rb1 {[%clk 0:02:13.3]}
30... Nb4 {[%clk 0:00:02.6]} 31. g3 {[%clk 0:02:10.7]} 31... e5 {[%clk
0:00:02.6]} 32. Kg2 {[%clk 0:02:10.1]} 32... Ke6 {[%clk 0:00:02.6]} 33. Ra1
{[%clk 0:02:06.1]} 33... f5 {[%clk 0:00:03]} 34. Ra8 {[%clk 0:02:05.8]} 34... e4
{[%clk 0:00:03.8]} 35. Bh5 {[%clk 0:02:04.6]} 35... Rd2 {[%clk 0:00:03.5]} 36.
Re8+ {[%clk 0:02:03.4]} 36... Kd7 {[%clk 0:00:03.4]} 37. Re7+ {[%clk 0:02:03.2]}
37... Kd8 {[%clk 0:00:04]} 38. Rf7 {[%clk 0:01:55.9]} 38... Nd3 {[%clk
0:00:04.1]} 39. Rxf5 {[%clk 0:01:56]} 39... e3 {[%clk 0:00:04.7]} 40. Kf1 {[%clk
0:01:48.6]} 40... Nxf2 {[%clk 0:00:02]} 41. Bf4 {[%clk 0:01:46]} 1-0

[Event "*** Titled Tuesday Blitz"]
[Site "Chess.com"]
[Date "2021.03.16"]
[Round "4"]
[White "bennyficial"]
[Black "HajiyevKanan"]
[Result "1-0"]
[WhiteElo "2220"]
[BlackElo "2400"]
[TimeControl "180+1"]
[EndTime "10:37:33 PDT"]
[Termination "bennyficial won by resignation"]

1. e4 {[%clk 0:03:00.9]} 1... c6 {[%clk 0:03:00.1]} 2. d4 {[%clk 0:03:00.1]}
2... d5 {[%clk 0:03:01]} 3. exd5 {[%clk 0:02:59.9]} 3... cxd5 {[%clk 0:03:01.9]}
4. Bd3 {[%clk 0:03:00.1]} 4... Nc6 {[%clk 0:03:01.7]} 5. c3 {[%clk 0:02:56.8]}
5... Qc7 {[%clk 0:03:02]} 6. h3 {[%clk 0:02:54.2]} 6... Nf6 {[%clk 0:03:02]} 7.
Nf3 {[%clk 0:02:44]} 7... g6 {[%clk 0:03:02.3]} 8. O-O {[%clk 0:02:43.4]} 8...
Bg7 {[%clk 0:03:02.9]} 9. Re1 {[%clk 0:02:41.9]} 9... O-O {[%clk 0:03:03.4]} 10.
Bg5 {[%clk 0:02:34.1]} 10... Bf5 {[%clk 0:03:03]} 11. Bf1 {[%clk 0:02:29]} 11...
Rab8 {[%clk 0:03:01.2]} 12. Nbd2 {[%clk 0:02:28.2]} 12... b5 {[%clk 0:02:59.6]}
13. a3 {[%clk 0:02:28.8]} 13... a5 {[%clk 0:02:59.3]} 14. Nb3 {[%clk 0:02:18.3]}
14... b4 {[%clk 0:02:58.2]} 15. axb4 {[%clk 0:02:18.3]} 15... axb4 {[%clk
0:02:58.4]} 16. Nc5 {[%clk 0:02:17.6]} 16... bxc3 {[%clk 0:02:57]} 17. bxc3
{[%clk 0:02:17.7]} 17... Rb2 {[%clk 0:02:53]} 18. Bh4 {[%clk 0:01:54.2]} 18...
Ne4 {[%clk 0:02:44.4]} 19. Nxe4 {[%clk 0:01:44.8]} 19... dxe4 {[%clk 0:02:44.4]}
20. Nd2 {[%clk 0:01:38]} 20... e5 {[%clk 0:02:44.2]} 21. Nc4 {[%clk 0:01:15.1]}
21... Rbb8 {[%clk 0:02:33.3]} 22. d5 {[%clk 0:01:14.4]} 22... Nd8 {[%clk
0:02:23.4]} 23. g4 {[%clk 0:01:08]} 23... Bd7 {[%clk 0:02:20.6]} 24. Rxe4 {[%clk
0:01:02.7]} 24... Bb5 {[%clk 0:02:17.6]} 25. Ne3 {[%clk 0:00:50.3]} 25... Qxc3
{[%clk 0:02:11.1]} 26. Rc1 {[%clk 0:00:47.6]} 26... Qa3 {[%clk 0:01:59.7]} 27.
Bxb5 {[%clk 0:00:44.8]} 27... Rxb5 {[%clk 0:02:00.6]} 28. d6 {[%clk 0:00:42.2]}
28... Ne6 {[%clk 0:01:48.1]} 29. d7 {[%clk 0:00:36.7]} 29... f6 {[%clk 0:01:48]}
30. Rc8 {[%clk 0:00:29.1]} 30... Nd4 {[%clk 0:01:45]} 31. Rxd4 {[%clk 0:00:19]}
31... exd4 {[%clk 0:01:42.4]} 32. Qxd4 {[%clk 0:00:19.1]} 32... Rb1+ {[%clk
0:01:16.1]} 33. Kg2 {[%clk 0:00:18.1]} 33... Qa1 {[%clk 0:01:14.6]} 34. Rxf8+
{[%clk 0:00:12.8]} 34... Bxf8 {[%clk 0:01:13.3]} 35. Qxa1 {[%clk 0:00:12.8]}
35... Rxa1 {[%clk 0:01:12.9]} 36. d8=Q {[%clk 0:00:13.2]} 36... g5 {[%clk
0:01:11.9]} 37. Qd5+ {[%clk 0:00:12.5]} 37... Kg7 {[%clk 0:01:11.4]} 38. Bxg5
{[%clk 0:00:12.9]} 38... fxg5 {[%clk 0:01:11.4]} 39. Qe5+ {[%clk 0:00:13.5]}
39... Kg6 {[%clk 0:01:11.5]} 40. Qxa1 {[%clk 0:00:14]} 40... Bd6 {[%clk
0:01:11.8]} 41. Qd4 {[%clk 0:00:13.5]} 41... Bf4 {[%clk 0:01:12.7]} 42. Qd5
{[%clk 0:00:13.3]} 42... h6 {[%clk 0:01:13]} 43. Qf5+ {[%clk 0:00:13.5]} 43...
Kg7 {[%clk 0:01:13.4]} 44. Nd5 {[%clk 0:00:13.8]} 44... Kg8 {[%clk 0:01:13]} 1-0

[Event "*** Titled Tuesday Blitz"]
[Site "Chess.com"]
[Date "2021.03.16"]
[Round "4"]
[White "Smile2005"]
[Black "abykhovsky"]
[Result "0-1"]
[WhiteElo "2433"]
[BlackElo "2656"]
[TimeControl "180+1"]
[EndTime "10:37:36 PDT"]
[Termination "abykhovsky won by checkmate"]

1. Nf3 {[%clk 0:03:00.9]} 1... Nf6 {[%clk 0:02:57.7]} 2. g3 {[%clk 0:03:01.8]}
2... d5 {[%clk 0:02:56.9]} 3. Bg2 {[%clk 0:03:02.7]} 3... c6 {[%clk 0:02:57.8]}
4. O-O {[%clk 0:03:03.6]} 4... Bg4 {[%clk 0:02:58]} 5. d3 {[%clk 0:03:04.5]}
5... Nbd7 {[%clk 0:02:58.4]} 6. c4 {[%clk 0:03:02.8]} 6... e6 {[%clk 0:02:57.9]}
7. Nbd2 {[%clk 0:03:02.8]} 7... Bd6 {[%clk 0:02:55.8]} 8. b3 {[%clk 0:03:03.2]}
8... O-O {[%clk 0:02:55.3]} 9. Bb2 {[%clk 0:03:03.9]} 9... a5 {[%clk 0:02:55.7]}
10. a3 {[%clk 0:03:04]} 10... Re8 {[%clk 0:02:49.6]} 11. Qc2 {[%clk 0:03:04.2]}
11... Rc8 {[%clk 0:02:48.2]} 12. Bc3 {[%clk 0:03:03.4]} 12... e5 {[%clk
0:02:39.3]} 13. e4 {[%clk 0:03:02.3]} 13... b5 {[%clk 0:02:20.4]} 14. Rfc1
{[%clk 0:02:53.7]} 14... Nc5 {[%clk 0:01:43.6]} 15. Bb2 {[%clk 0:02:06.8]} 15...
h6 {[%clk 0:01:33.9]} 16. exd5 {[%clk 0:02:04.6]} 16... cxd5 {[%clk 0:01:33.9]}
17. cxd5 {[%clk 0:02:04.1]} 17... Bf5 {[%clk 0:01:18.7]} 18. Ne1 {[%clk
0:01:39.1]} 18... Nxd3 {[%clk 0:01:14.8]} 19. Qd1 {[%clk 0:01:38.8]} 19... Nxb2
{[%clk 0:01:14]} 20. Qf3 {[%clk 0:01:31.7]} 20... Bg6 {[%clk 0:01:13.4]} 21. Rc6
{[%clk 0:01:25.8]} 21... e4 {[%clk 0:01:06.7]} 22. Qc3 {[%clk 0:01:25]} 22...
Rxc6 {[%clk 0:01:04.3]} 23. dxc6 {[%clk 0:01:21.8]} 23... Be5 {[%clk 0:01:04.7]}
24. Qc5 {[%clk 0:01:09.6]} 24... Nd3 {[%clk 0:01:03.3]} 25. Nxd3 {[%clk
0:01:06.3]} 25... Bxa1 {[%clk 0:01:02.9]} 26. c7 {[%clk 0:01:04.1]} 26... Qxd3
{[%clk 0:01:02.5]} 27. c8=Q {[%clk 0:01:02.5]} 27... Rxc8 {[%clk 0:01:00.5]} 28.
Qxc8+ {[%clk 0:01:03.4]} 28... Kh7 {[%clk 0:01:00.3]} 29. Nf1 {[%clk 0:00:56.7]}
29... Qxb3 {[%clk 0:00:56.3]} 30. h4 {[%clk 0:00:55.8]} 30... Qxa3 {[%clk
0:00:54.5]} 31. g4 {[%clk 0:00:56.3]} 31... h5 {[%clk 0:00:47.1]} 32. g5 {[%clk
0:00:56.1]} 32... Ng4 {[%clk 0:00:47.2]} 33. Ng3 {[%clk 0:00:53]} 33... Bd4
{[%clk 0:00:40.5]} 34. Nxe4 {[%clk 0:00:52.3]} 34... Qa1+ {[%clk 0:00:39.1]} 35.
Bf1 {[%clk 0:00:47.1]} 35... Bxe4 {[%clk 0:00:38.8]} 36. Qd7 {[%clk 0:00:27]}
36... Bxf2# {[%clk 0:00:37.8]} 0-1

[Event "*** Titled Tuesday Blitz"]
[Site "Chess.com"]
[Date "2021.03.16"]
[Round "4"]
[White "muchojogo"]
[Black "Bhagya_2312"]
[Result "1-0"]
[WhiteElo "2422"]
[BlackElo "2239"]
[TimeControl "180+1"]
[EndTime "10:37:37 PDT"]
[Termination "muchojogo won by resignation"]

1. d4 {[%clk 0:03:00.8]} 1... d5 {[%clk 0:02:59.3]} 2. Bf4 {[%clk 0:02:57]} 2...
Nf6 {[%clk 0:02:58.6]} 3. Nf3 {[%clk 0:02:57.5]} 3... c5 {[%clk 0:02:57.3]} 4.
e3 {[%clk 0:02:58.1]} 4... Nc6 {[%clk 0:02:56.6]} 5. Nbd2 {[%clk 0:02:57.7]}
5... cxd4 {[%clk 0:02:55.8]} 6. exd4 {[%clk 0:02:58.6]} 6... Bf5 {[%clk
0:02:54.5]} 7. c3 {[%clk 0:02:58.6]} 7... e6 {[%clk 0:02:53.7]} 8. Be2 {[%clk
0:02:55.8]} 8... Bd6 {[%clk 0:02:52.8]} 9. Bxd6 {[%clk 0:02:54.8]} 9... Qxd6
{[%clk 0:02:52.3]} 10. O-O {[%clk 0:02:55.7]} 10... h6 {[%clk 0:02:51.6]} 11.
Re1 {[%clk 0:02:55]} 11... O-O {[%clk 0:02:51]} 12. Qb3 {[%clk 0:02:53]} 12...
Rab8 {[%clk 0:02:46.7]} 13. Bf1 {[%clk 0:02:52.7]} 13... Nd7 {[%clk 0:02:34.6]}
14. Rad1 {[%clk 0:02:46]} 14... Rfe8 {[%clk 0:02:33.1]} 15. g3 {[%clk
0:02:40.6]} 15... a6 {[%clk 0:02:31.1]} 16. a4 {[%clk 0:02:12.9]} 16... Na5
{[%clk 0:02:17.5]} 17. Qa2 {[%clk 0:02:13]} 17... Qc7 {[%clk 0:02:12.7]} 18. Ne5
{[%clk 0:02:08.4]} 18... Nxe5 {[%clk 0:02:06.4]} 19. Rxe5 {[%clk 0:02:09.3]}
19... b5 {[%clk 0:01:53.9]} 20. axb5 {[%clk 0:02:08.7]} 20... axb5 {[%clk
0:01:53.3]} 21. Rxf5 {[%clk 0:02:06.6]} 21... exf5 {[%clk 0:01:52.4]} 22. Qxd5
{[%clk 0:02:07.5]} 22... b4 {[%clk 0:01:48]} 23. Qxf5 {[%clk 0:01:44.2]} 23...
bxc3 {[%clk 0:01:45.9]} 24. bxc3 {[%clk 0:01:45.1]} 24... Qxc3 {[%clk
0:01:44.9]} 25. Ne4 {[%clk 0:01:45.7]} 25... Qb4 {[%clk 0:01:36.7]} 26. Bd3
{[%clk 0:01:38.7]} 26... Rb6 {[%clk 0:01:28.5]} 27. d5 {[%clk 0:01:35.3]} 27...
Nc4 {[%clk 0:01:18.3]} 28. Rc1 {[%clk 0:01:04.6]} 28... Ne5 {[%clk 0:01:07]} 29.
Rc8 {[%clk 0:00:33.7]} 29... Rb8 {[%clk 0:01:04.2]} 30. Nf6+ {[%clk 0:00:23.4]}
30... gxf6 {[%clk 0:01:02.3]} 31. Qh7+ {[%clk 0:00:23.4]} 31... Kf8 {[%clk
0:01:01.4]} 32. Qh8+ {[%clk 0:00:24.3]} 32... Ke7 {[%clk 0:01:00.7]} 33. Qxe8+
{[%clk 0:00:25.2]} 33... Kd6 {[%clk 0:00:59.3]} 34. Rxb8 {[%clk 0:00:23.2]}
34... Qe1+ {[%clk 0:00:57.3]} 35. Kg2 {[%clk 0:00:23.5]} 35... Nxd3 {[%clk
0:00:55.8]} 36. Qc6+ {[%clk 0:00:22]} 36... Ke5 {[%clk 0:00:55.2]} 37. Re8+
{[%clk 0:00:22.2]} 1-0

[Event "*** Titled Tuesday Blitz"]
[Site "Chess.com"]
[Date "2021.03.16"]
[Round "4"]
[White "jraosam"]
[Black "Artem_Sadovsky"]
[Result "0-1"]
[WhiteElo "1894"]
[BlackElo "2612"]
[TimeControl "180+1"]
[EndTime "10:37:40 PDT"]
[Termination "Artem_Sadovsky won on time"]

1. c4 {[%clk 0:03:00.9]} 1... g6 {[%clk 0:02:53.8]} 2. d4 {[%clk 0:03:00.3]}
2... Bg7 {[%clk 0:02:54.2]} 3. e4 {[%clk 0:03:00]} 3... d6 {[%clk 0:02:54.6]} 4.
Nc3 {[%clk 0:02:58.6]} 4... e5 {[%clk 0:02:55]} 5. d5 {[%clk 0:02:57.9]} 5... f5
{[%clk 0:02:54.1]} 6. exf5 {[%clk 0:02:51.2]} 6... gxf5 {[%clk 0:02:53.5]} 7.
Qh5+ {[%clk 0:02:49.8]} 7... Kf8 {[%clk 0:02:53]} 8. Nf3 {[%clk 0:02:38.5]} 8...
Nf6 {[%clk 0:02:48.1]} 9. Qh4 {[%clk 0:02:38.3]} 9... Qe8 {[%clk 0:02:46.5]} 10.
Bg5 {[%clk 0:02:13.6]} 10... Qg6 {[%clk 0:02:44.3]} 11. Bxf6 {[%clk 0:01:32.7]}
11... Bxf6 {[%clk 0:02:43.4]} 12. Qg3 {[%clk 0:01:32.7]} 12... Na6 {[%clk
0:02:40.3]} 13. Qxg6 {[%clk 0:01:26.1]} 13... hxg6 {[%clk 0:02:41.2]} 14. Be2
{[%clk 0:01:27]} 14... e4 {[%clk 0:02:37.6]} 15. Nd2 {[%clk 0:01:23.8]} 15...
Bd7 {[%clk 0:02:36]} 16. O-O-O {[%clk 0:01:23.4]} 16... Nc5 {[%clk 0:02:33]} 17.
Nb3 {[%clk 0:01:21.2]} 17... Nxb3+ {[%clk 0:02:18.6]} 18. axb3 {[%clk
0:01:22.1]} 18... Kg7 {[%clk 0:02:17.9]} 19. Kc2 {[%clk 0:01:19.5]} 19... a6
{[%clk 0:02:18.1]} 20. f3 {[%clk 0:01:09.6]} 20... e3 {[%clk 0:02:12.8]} 21. f4
{[%clk 0:01:06.6]} 21... Rae8 {[%clk 0:02:07.9]} 22. Rd3 {[%clk 0:01:00.8]}
22... g5 {[%clk 0:02:04.2]} 23. fxg5 {[%clk 0:00:30.2]} 23... Bxg5 {[%clk
0:02:03.9]} 24. g3 {[%clk 0:00:31.1]} 24... f4 {[%clk 0:01:33.8]} 25. h4 {[%clk
0:00:25.2]} 25... Bd8 {[%clk 0:01:29.5]} 26. Rd4 {[%clk 0:00:08.7]} 26... fxg3
{[%clk 0:01:26.9]} 27. Rg1 {[%clk 0:00:07.2]} 27... Bxh4 {[%clk 0:01:24.7]} 28.
Ne4 {[%clk 0:00:04.6]} 28... Bf5 {[%clk 0:01:23.6]} 29. Kd3 {[%clk 0:00:04.6]}
29... Rxe4 {[%clk 0:01:18.7]} 30. Rxe4 {[%clk 0:00:05.1]} 30... Re8 {[%clk
0:01:19.1]} 31. Bf3 {[%clk 0:00:05.3]} 31... Bxe4+ {[%clk 0:01:19.6]} 32. Bxe4
{[%clk 0:00:06.2]} 32... e2 {[%clk 0:01:18.3]} 33. Re1 {[%clk 0:00:01.4]} 33...
g2 {[%clk 0:01:18.8]} 34. Rg1 {[%clk 0:00:01.7]} 34... e1=Q {[%clk 0:01:18.6]}
35. Rxe1 {[%clk 0:00:02]} 35... Rxe4 {[%clk 0:01:15.8]} 36. Rxe4 {[%clk
0:00:01.6]} 36... g1=Q {[%clk 0:01:15.3]} 0-1

[Event "*** Titled Tuesday Blitz"]
[Site "Chess.com"]
[Date "2021.03.16"]
[Round "4"]
[White "Aleksandar-Topalov"]
[Black "jfriedel"]
[Result "0-1"]
[WhiteElo "2374"]
[BlackElo "2590"]
[TimeControl "180+1"]
[EndTime "10:37:43 PDT"]
[Termination "jfriedel won by resignation"]

1. b3 {[%clk 0:02:35.9]} 1... Nf6 {[%clk 0:02:55.8]} 2. Bb2 {[%clk 0:02:17.2]}
2... g6 {[%clk 0:02:55.2]} 3. Bxf6 {[%clk 0:02:16.6]} 3... exf6 {[%clk
0:02:56.1]} 4. c4 {[%clk 0:02:16.5]} 4... Bg7 {[%clk 0:02:53.3]} 5. Nc3 {[%clk
0:02:16.3]} 5... O-O {[%clk 0:02:49.7]} 6. e3 {[%clk 0:02:07.4]} 6... f5 {[%clk
0:02:49.1]} 7. Nge2 {[%clk 0:02:07.6]} 7... b6 {[%clk 0:02:41]} 8. g3 {[%clk
0:02:07.9]} 8... Bb7 {[%clk 0:02:40.7]} 9. Rg1 {[%clk 0:02:05.2]} 9... d6 {[%clk
0:02:16.6]} 10. Bg2 {[%clk 0:02:03.2]} 10... Bxg2 {[%clk 0:02:15]} 11. Rxg2
{[%clk 0:02:03.4]} 11... Nd7 {[%clk 0:02:14.7]} 12. Rb1 {[%clk 0:02:02.1]} 12...
Qc8 {[%clk 0:02:05.8]} 13. Rg1 {[%clk 0:01:58.8]} 13... Ne5 {[%clk 0:02:01.4]}
14. Nf4 {[%clk 0:01:54.7]} 14... Qb7 {[%clk 0:01:59.8]} 15. Ncd5 {[%clk
0:01:52]} 15... c6 {[%clk 0:01:55.3]} 16. Nc3 {[%clk 0:01:50.8]} 16... Rfe8
{[%clk 0:01:33.5]} 17. d4 {[%clk 0:01:49.5]} 17... Ng4 {[%clk 0:01:29.3]} 18. h3
{[%clk 0:01:49]} 18... Nf6 {[%clk 0:01:29.6]} 19. Kf1 {[%clk 0:01:48.3]} 19...
b5 {[%clk 0:01:26.2]} 20. Kg2 {[%clk 0:01:44.8]} 20... b4 {[%clk 0:01:22.1]} 21.
Nce2 {[%clk 0:01:42.8]} 21... g5 {[%clk 0:01:08.5]} 22. Nd3 {[%clk 0:01:41.2]}
22... a5 {[%clk 0:01:04.5]} 23. Kh2 {[%clk 0:01:40.6]} 23... Qe7 {[%clk
0:01:01.2]} 24. Re1 {[%clk 0:01:27.5]} 24... Ne4 {[%clk 0:00:58.3]} 25. Rf1
{[%clk 0:01:17.5]} 25... h5 {[%clk 0:00:57.1]} 26. Qc2 {[%clk 0:01:09.7]} 26...
h4 {[%clk 0:00:55.7]} 27. Rbe1 {[%clk 0:01:05.1]} 27... g4 {[%clk 0:00:43]} 28.
Nef4 {[%clk 0:00:59.5]} 28... Ng5 {[%clk 0:00:38.8]} 29. Re2 {[%clk 0:00:45.4]}
29... Nf3+ {[%clk 0:00:27.4]} 30. Kg2 {[%clk 0:00:45.5]} 30... Qe4 {[%clk
0:00:25.2]} 31. hxg4 {[%clk 0:00:28.1]} 31... Ne1+ {[%clk 0:00:24.9]} 0-1